Cogmind - Beta 14 @@@ ROGUE MODE // 2024.11.16 @ 06:08:39 Player: Fangrelle Result: Destroyed self with Grenade Launcher Performance ------------- Evolutions (0) 0 Regions Visited (2) 400 Robots Destroyed (31) 155 Value Destroyed (608) 608 Prototype IDs (0) 0 Alien Tech Used (0) 0 Bonus (-258) -258 TOTAL SCORE: 905 Bonus ------- High Alert Combat Kills 2 Friendly Fire -260 Cogmind --------- Core Integrity 0/250 Matter 211/300 Energy 250/250 System Corruption 1% Temperature Cool (0) Movement Rolling (175) Ox5 Location -10/Mines Parts ------- > --- POWER (1) -------- Ion Engine > --- PROPULSION (2) --- Light Treads Compact Wheel > --- UTILITY (2) ------ Huge Storage Unit Signal Interpreter > --- WEAPON (2) ------- Grenade Launcher Grenade Launcher > --- INVENTORY (25) --- Ion Engine Light Treads Light Treads Light Treads Wheel Wheel Large Storage Unit Large Storage Unit Medium Laser Medium Laser Light Cannon Grenade Launcher Datajack Datajack Peak State ------------ > --- POWER ------------ Ion Engine > --- PROPULSION ------- Light Treads Light Treads > --- UTILITY ---------- Small Storage Unit Huge Storage Unit > --- WEAPON ----------- Medium Laser Light Cannon > --- INVENTORY -------- Ion Engine Light Treads Wheel Compact Wheel Heat Sink Medium Laser Grenade Launcher Grenade Launcher Grenade Launcher Datajack [Rating: 8] Favorites ----------- Power Ion Engine Engine Ion Engine Propulsion Light Treads Treads Light Treads Leg Aluminum Leg Wheel Compact Wheel Utility Huge Storage Unit Device Heat Sink Storage Huge Storage Unit Processor Signal Interpreter Protection Propulsion Shielding Weapon Medium Laser Energy Gun Medium Laser Ballistic Cannon Light Cannon Launcher Grenade Launcher Build | -11 -10 -10 ------- Run | Yrd Mat Min Slots Evolved . | . . . Power . | . . . Propulsion . | . . . Utility . | . . . Weapon . | . . . Parts Attached 18 | . 15 3 Power 2 | . 2 . Engine 2 | . 2 . Core . | . . . Reactor . | . . . Propulsion 3 | . 2 1 Treads 2 | . 2 . Leg . | . . . Wheel 1 | . . 1 Hover . | . . . Flight . | . . . Utility 5 | . 5 . Device 1 | . 1 . Storage 1 | . 1 . Processor 1 | . 1 . Hackware . | . . . Protection 2 | . 2 . Artifact . | . . . Weapon 8 | . 6 2 Energy Gun 3 | . 3 . Energy Cannon . | . . . Ballistic Gun . | . . . Ballistic Cannon 2 | . 2 . Launcher 3 | . 1 2 Special Weapon . | . . . Impact Weapon . | . . . Slashing Weapon . | . . . Piercing Weapon . | . . . Special Melee Weapon . | . . . Unidentified Prototypes . | . . . Parts Lost 5 | . 5 . Power 1 | . 1 . Propulsion 2 | . 2 . Utility 2 | . 2 . Weapon . | . . . Highest Loss Streak 3 | . 3 . To Critical Strikes . | . . . Average Slot Usage (%) 96 | . 95 100 Engine 13 | . 13 14 Treads 14 | . 11 27 Leg 12 | . 15 . Device 3 | . 4 . Storage 18 | . 20 14 Processor 3 | . . 14 Energy Gun 18 | . 19 13 Ballistic Cannon 8 | . 7 13 Peak Build Rating 8 | . 8 8 Average Rating 7 | . 7 8 On Entrance 6 | 6 6 8 Naked Turns . | . . . Heaviest Build 95 | 13 95 91 Greatest Support 40 | 20 40 40 Greatest Overweight (x) 29 | . 29 5 Average Overweight (x) 2 | . 1 2 Largest Inventory Capacity 25 | . 25 25 Average Capacity 22 | . 21 25 Most Carried 15 | . 15 14 Average Carried 10 | . 9 14 Final Capacity 25 | 8 25 25 Final Carried 14 | 6 14 14 Class Distribution -------------------- 100% | Mutant Dominant Class ---------------- Mutant | -10/Materials Mutant | -10/Mines Resources | -11 -10 -10 ----------- Run | Yrd Mat Min Matter Collected 577 | 200 333 44 Remotely . | . . . Salvage Created 816 | . 778 38 Parts 56 | . 54 2 Haulers Intercepted 1 | . 1 . Recyclers Shooed 1 | . 1 . Parts Field Recycled . | . . . Retrieved Matter . | . . . Parts Self-Destructed . | . . . Prevented . | . . . Kills | -11 -10 -10 ------- Run | Yrd Mat Min Combat Hostiles Destroyed 22 | . 17 5 Guns 8 | . 8 . Cannons 5 | . 5 . AOE 9 | . 4 5 Classes Destroyed 10 | . 9 1 Worker 1 | . 1 . Builder 2 | . 2 . Hauler 1 | . 1 . Recycler 3 | . 3 . Mechanic 1 | . 1 . Operator 2 | . 2 . Watcher 2 | . 2 . Swarmer 6 | . 6 . Grunt 13 | . 11 2 Assembled 5 | . . 5 Best Kill Streak 6 | . 6 5 Combat Bots Only 5 | . 3 5 Max Kills in Single Turn 4 | . 3 4 Gunslinging . | . . . Exploded 3 | . 3 3 Melee . | . . . Uniques/NPCs Destroyed . | . . . Combat | -11 -10 -10 -------- Run | Yrd Mat Min Hostile Shots Fired 80 | . 79 1 Missed 25 | . 25 . Damage Taken 1137 | . 1102 35 Core 260 | . 249 11 Absorbed by Shields . | . . . Core Remaining (%) 100 | 100 . . Volleys Fired 81 | . 78 3 Largest 2 | . 2 2 Hottest 100 | . 100 60 Shots Fired 154 | . 149 5 Gun 91 | . 91 . Cannon 54 | . 54 . Launcher 9 | . 4 5 Special . | . . . Kinetic 54 | . 54 . Thermal 91 | . 91 . Explosive 9 | . 4 5 Electromagnetic . | . . . Robot Hit Streak 9 | . 9 3 Robot Miss Streak 9 | . 9 . Penetration Max . | . . . Secondary Targets . | . . . Shots Hit Robots 88 | . 87 1 Core Hits 62 | . 42 20 Critical Kills . | . . . Critical Parts Destroyed . | . . . Critical Strikes 4 | . 4 . Burn 4 | . 4 . Melee Attacks . | . . . Impact . | . . . Slashing . | . . . Piercing . | . . . Sneak Attacks . | . . . Combat Hostiles . | . . . Follow-up Attacks . | . . . Damage Inflicted 2258 | . 1724 534 Guns 663 | . 663 . Cannons 453 | . 453 . Explosions 1138 | . 604 534 Melee . | . . . Ramming 4 | . 4 . Kinetic 453 | . 453 . Thermal 663 | . 663 . Explosive 1138 | . 604 534 Electromagnetic . | . . . Impact . | . . . Slashing . | . . . Piercing . | . . . Highest Corruption 1 | . 1 1 Average Corruption 1 | . 1 1 Corruption Purged . | . . . Corruption Blocked . | . . . Effects 3 | . 1 2 Message Errors 1 | . . 1 Matter Fused 1 | . . 1 Data Loss (major) 1 | . 1 . Overload Shots . | . . . Overflow Damage 52 | . 30 22 Projectiles 7 | . 7 . Explosions 45 | . 23 22 Melee . | . . . Knockbacks 6 | . 6 . Impact . | . . . Kinetic 5 | . 5 . Secondary 1 | . 1 . Self-Inflicted Damage 210 | . 188 22 Shots 5 | . 4 1 Rammed 1 | . 1 . Targets Rammed 1 | . 1 . Kicked . | . . . Crushed . | . . . Highest Temperature 240 | . 240 . Average Temperature 69 | . 69 . Received Heat Transfer 348 | . 348 . Effects 2 | . 2 . Interference 2 | . 2 . Siege Activations . | . . . Robots Corrupted . | . . . Combat Hostiles . | . . . Parts Fried . | . . . Impact Corruptions . | . . . Robots Melted . | . . . Combat Hostiles . | . . . Parts Melted 5 | . 4 1 Heat Transferred 2163 | . 2163 . Parts Sabotaged . | . . . Parts Stolen . | . . . Parts Stripped . | . . . Power Chain Reactions . | . . . Alert | -11 -10 -10 ------- Run | Yrd Mat Min Peak Influence 449 | . 449 72 Initial 72 | . . 72 Average 161 | . 191 54 Maximum Alert Level 2 | . 2 . Low Security (%) 76 | . 70 100 Level 1 19 | . 24 . Level 2 3 | . 4 . Level 3 . | . . . Level 4 . | . . . Level 5 . | . . . High Security . | . . . Max Security . | . . . Squads Dispatched 6 | . 6 . Investigation 4 | . 4 . Extermination . | . . . Reinforcement 2 | . 2 . Assault . | . . . Garrison . | . . . Intercept . | . . . Searches Triggered . | . . . Construction Impeded . | . . . Haulers Reinforced . | . . . Active Scanning Responses . | . . . Cargo Convoy Interrupts . | . . . Stealth | -11 -10 -10 --------- Run | Yrd Mat Min Distress Signals 1 | . 1 . Communications Jammed . | . . . Distress Signals . | . . . Times Spotted 36 | . 30 6 Peak Tracking Total 8 | . 3 8 Tactical Retreats 1 | . 1 . Traps | -11 -10 -10 ------- Run | Yrd Mat Min Traps Triggered 1 | . 1 . Indirectly . | . . . Trap Hack Attempts . | . . . Triggered . | . . . Disarmed . | . . . Reprogrammed . | . . . Reused . | . . . Traps Extracted . | . . . Installed . | . . . Triggered . | . . . Machines | -11 -10 -10 ---------- Run | Yrd Mat Min Machines Disabled 4 | . 4 . Max in Single Turn 2 | . 2 . Machines Repaired . | . . . Machines Dismantled . | . . . Machines Sabotaged . | . . . Overloaded Fab Kills . | . . . Hacking | -11 -10 -10 --------- Run | Yrd Mat Min Machines Accessed 5 | . 5 . Terminals 4 | . 4 . Fabricators . | . . . Repair Stations . | . . . Recycling Units 1 | . 1 . Scanalyzers . | . . . Garrison Access . | . . . Total Hacks 17 | . 17 . Successful 9 | . 9 . Failed 8 | . 8 . Catastrophic 1 | . 1 . Database Lockouts . | . . . Manual 16 | . 16 . Terminals 15 | . 15 . Fabricators . | . . . Repair Stations . | . . . Recycling Units 2 | . 2 . Scanalyzers . | . . . Garrison Access . | . . . Terminal Hacks 3 | . 3 . Robot Analysis 3 | . 3 . Fabricator Hacks . | . . . Repair Station Hacks . | . . . Recycling Unit Hacks 1 | . 1 . Retrieve Components 1 | . 1 . Scanalyzer . | . . . Garrison Access Hacks . | . . . Unauthorized Hacks 5 | . 5 . Terminals 4 | . 4 . Assimilate 1 | . 1 . Botnet 3 | . 3 . Fabricators . | . . . Repair Stations . | . . . Recycling Units 1 | . 1 . Tunnel 1 | . 1 . Scanalyzers . | . . . Garrison Access . | . . . Data Cores Recovered 1 | . 1 . Used 1 | . 1 . Hacking Detections 4 | . 4 . Full Trace Events 2 | . 2 . Feedback Events 1 | . 1 . Corruption 1 | . 1 . Feedback Blocked . | . . . Robot Schematics Acquired . | . . . Robots Built . | . . . Authchips . | . . . Time . | . . . Total Robot Build Rating . | . . . Part Schematics Acquired . | . . . Parts Built . | . . . Authchips . | . . . Time . | . . . Total Part Build Rating . | . . . Parts Repaired . | . . . Time . | . . . Parts Recycled . | . . . Recycled Matter . | . . . Retrieved Matter . | . . . Retrieved Components 3 | . 3 . Parts Scanalyzed . | . . . Part Schematics Acquired . | . . . Parts Damaged . | . . . Bothacking | -11 -10 -10 ------------ Run | Yrd Mat Min Used RIF Installer . | . . . Robots Hacked . | . . . Non-combat . | . . . Combat . | . . . Robot Hacks Applied . | . . . Relay Couplers Released . | . . . Fabnet Peak Effective % . | . . . Robots Rewired . | . . . Allies Hacked . | . . . Hacks Repelled . | . . . Allies | -11 -10 -10 -------- Run | Yrd Mat Min Total Allies 3 | . . 3 Largest Group 3 | . . 3 Highest-Rated Group 40 | . . 40 Highest-Rated Ally 16 | . . 16 Total Orders 1 | . . 1 STAY 1 | . . 1 Ally Attacks 17 | . . 17 Total Damage 153 | . . 153 Kills 2 | . . 2 Allies Corrupted . | . . . Allies Melted . | . . . Intel | -11 -10 -10 ------- Run | Yrd Mat Min Robot Analysis Total 3 | . 3 . Derelict Logs Recovered . | . . . Drone Launches . | . . . Drone Recoveries . | . . . Exploration | -11 -10 -10 ------------- Run | Yrd Mat Min Turns Passed 2423 | . 1898 525 Spaces Moved 724 | 1 589 134 Core 3 | . 3 . Treads 337 | . 205 132 Legs 382 | 1 381 . Wheels 2 | . . 2 Hover . | . . . Flight . | . . . Fastest Speed 120 | 120 120 175 Average Speed 284 | 120 277 317 Slowest Speed 1500 | 120 1500 320 Overloaded Moves . | . . . Propulsion Burnouts . | . . . Robots Hopped . | . . . Cave-ins Triggered . | . . . Exploration Rate (%) 41 | 2 89 33 Regions Visited 2 Branch Regions 1 Pre-discovered Areas 1 | . 1 . Known Exits Taken 1 | . 1 . Unknown Exits Taken 1 | 1 . . Scrap Searched 1 | . . 1 Spaces Dug . | . . . Terrain Destroyed 71 | . 62 9 Melee . | . . . Projectile . | . . . AOE 71 | . 62 9 Terrain Rammed . | . . . Walls Destroyed . | . . . Machines Disabled . | . . . Actions | -11 -10 -10 --------- Run | Yrd Mat Min Total 930 | . 702 228 Wait 89 | . 1 88 Move 722 | . 588 134 Hop . | . . . Pick Up 13 | . 13 . Fast Attach 4 | . 4 . Attach 7 | . 7 . Detach 2 | . 2 . Swap 7 | . 4 3 Drop 4 | . 4 . Fire 81 | . 78 3 Melee . | . . . Ram . | . . . Kick . | . . . Crush 1 | . 1 . Escape Stasis . | . . . Rewire . | . . . Trap . | . . . Miscellaneous . | . . . Route ------- -11/Scrapyard -10/Materials (discovered 4 exits: *Mat x3 / *Min) -10/Mines (discovered 1 exit: *Mat) History --------- Turn | Location | Event 1 | -11/Scrapyard | Discovered new exit (range 0) 1 | -11/Scrapyard | Entered Materials 89 | -10/Materials | Discovered new exit (range 10) 301 | -10/Materials | Build established: Mutant 834 | -10/Materials | Discovered new exit (range 10) 1076 | -10/Materials | Core integrity fell below 50% 1106 | -10/Materials | Lost 3 parts (1p2n) 1155 | -10/Materials | Discovered new exit (range 15) 1226 | -10/Materials | Core integrity fell below 20% 1844 | -10/Materials | Discovered new exit (range 14) 1895 | -10/Materials | Identified exit to Mines 1899 | -10/Materials | Entered Mines 1901 | -10/Mines | Met a Derelict bent on vengeance 2263 | -10/Mines | Discovered new exit (range 9) 2333 | -10/Mines | Assisted by bots powering up and referring to "LRC-V3" 2382 | -10/Mines | Assembled infested the area 2387 | -10/Mines | Assisted by a Guerilla fighting off Assembled 2391 | -10/Mines | Identified exit to Materials 2424 | -10/Mines | Destroyed self with Grenade Launcher Last Messages --------------- 02263_ EXIT=FOUND 02286_ System corrupted: Matter fused (-9). 02333_ Trooper 1a: "Hello LRC-V3. What is your command?" 02333_ Mercenary 1a: "Hello LRC-V3. What is your command?" 02333_ Trooper 1b: "Hello LRC-V3. What is your command?" 02382_ ALERT: Infestation in the mines, dispatching Demolisher response squad. 02387_ A derelict emerges from the shadows: "You need to get out of here! I've been tracking a group of Assembled to figure out where they're coming from, and they're closing on this area, come on!" 02388_ 9I-VU2(h) exits level. 02391_ EXIT=IDENTIFIED: MATERIALS 02418_ Mercenary 1a knocked back. 02418_ as-52258 destroyed. 02418_ as-67021 destroyed. 02418_ Destroyed Asb. Hover Unit. 02418_ as-81766 destroyed. 02418_ Trooper 1b destroyed. 02420_ as-89147 destroyed. 02421_ Aluminum Leg melted. 02421_ Mercenary 1a destroyed. 02424_ as-51180 destroyed. Map ----- +----------------------------------------------------+ | | | | | | | | | | | | | | | | | ?????????????????????????????? | | ?????????????????????????????? | | ??????????????????????#####??? | | ???????????????????### #??? | | ??????????????????## #???? | | ??????????????????# #????? | | ?????????????????## #?????? | | ????????????????## #?????? | | ?????????????#### #####?? | | ?????????????# ## ##? | | ?????????????# ### #? | | ?????????????# ##??# #? | | ?????????????#### ##??# #? | | ??????????????## ##?# #? | | ?????#####????# ### #? | | ??#### ##???# ## ## | | ?## ##??# ## | | ?# @ #??# #### | | ?# #### #??# # | | ?## a ##?# # | | ??## [ #?# # | | ???###### [ ## #?# # | | ?????????# < ### ### # | | ?????????# ##?# # | | ?????????# ## # | | ?????????# ## ########## | | ?????????## ###??????????? | | ??????????### #????????????? | | ????????????## #????????????? | | ?????????????# #????????????? | | ?????????????# #????????????? | | ?????????????# ????????????? | | ?????????????# ???????????? | | ????????????? ???????????? | | ????????????? ???????????? | | ????????????? ??????????? | | ????????????? ??????????? | | ????????????? ??????????? | | ????????????## ??????????? | | ?????????????? #??????????? | | ??????????????# ????????????? | | ?????????????????????????????? | +----------------------------------------------------+ Best States ------------- Heat Dissipation 35 Energy Generation 10 Energy Capacity 250 Matter Stores 300 Matter Capacity 300 Sight Range 16 Terrain Scan Density 10 Armor Coverage 150 Propulsion Shielding 33 Evasion (%) 55 Recoil Reduction 2 Item Schematics ----------------- None Robot Schematics ------------------ None Fabricated ------------ Nothing Alien Tech Used ----------------- None Achievements -------------- None Challenges ------------ None Game ------ Seed TrapBoreCompressor Manual? 0 Play Time 00:10:16 Cumulative 86.8 hours Start 2024.11.16 @ 05:59:15 End 2024.11.16 @ 06:08:39 Sessions 1 Manual Loads 0 Difficulty Rogue Special Mode None Game No. 150 Rogue 150 Adventurer 0 Explorer 0 Win Type - Total 0 Types 0/0/0/0/0/0/0/0/0 Lore% 41 Gallery% 36 Achievement% 34 Wizard Run 0 Options --------- Layout 0 ASCII 0 Keyboard 0 Movement Mouse Keybinds 0 Fullscreen 1 Font 24/Cog Map View 183x50 Zoom Use 56% Tactical HUD 1 Map Filters NONE Filters NONE Steam 1 RUN: 74757261-a8a1-4bf9-aa5e-a74bf3c5fcbf